bitfinex/quotes_ETHUSD_20250414
["timestamp","ask_amount","ask_price","bid_price","bid_amount"]
[1744648977008,6.14,1630.6,1630.3,13.75773]
[1744648977199,12.27294,1630.6,1630.3,13.75773]
[1744648977399,6.14,1630.6,1630.4,6.13335]
[1744648977653,6.14,1630.6,1630.3,13.75782]
[1744648977807,12.27292,1630.6,1630.3,19.89154]
[1744648978133,18.40584,1630.6,1630.3,7.624]
[1744648978336,6.13346,1630.4,1630.1,0.8235]
[1744648978501,6.13339,1630.5,1630.2,4.0]
[1744648978706,12.27349,1630.4,1630.2,4.0]
[1744648978933,12.27349,1630.4,1630.1,6.13453]
[1744648979130,6.9402,1630.4,1630.2,6.1341]
[1744648979337,6.9402,1630.4,1630.2,6.1342]
[1744648979744,6.9402,1630.4,1630.1,6.13451]
[1744648979936,6.9402,1630.4,1630.2,6.13407]
[1744648980336,14.994346,1630.4,1630.0,13.75884]
[1744648980509,21.128046,1630.4,1630.0,19.89368]
[1744648980703,14.994346,1630.4,1630.1,6.13448]
[1744648980940,13.07369,1630.4,1630.1,12.26896]
[1744648981338,13.07377,1630.4,1629.9,0.7695]
[1744648981539,6.14,1630.3,1630.1,12.26883]
[1744648981727,6.14,1630.3,1630.1,6.13438]
[1744648981921,6.14,1630.3,1630.2,6.13421]
[1744648982123,6.14,1630.3,1630.2,7.361069]
[1744648982713,6.14,1630.3,1630.2,1.226859]
[1744648983023,6.14,1630.3,1630.1,6.13438]
[1744648983438,12.27385,1630.3,1629.9,8.3935]
[1744648983619,6.13427,1630.2,1630.0,4.0]
[1744648983811,6.9251,1630.3,1630.1,6.13446]
[1744648984013,6.9251,1630.3,1630.0,4.0]
[1744648984215,6.14,1630.3,1630.1,6.13446]
[1744648984414,6.13459,1630.1,1630.0,4.0]
[1744648984612,12.26939,1630.1,1629.8,6.1356]
[1744648984827,12.27051,1630.0,1629.6,6.13621]
[1744648985008,13.10167,1629.9,1629.7,4.0]
[1744648985444,6.14,1629.9,1629.7,16.27167]
[1744648985631,6.14,1629.9,1629.8,6.13572]
[1744648986023,6.14,1629.9,1629.8,6.93042]
[1744648986219,6.14,1629.9,1629.8,6.13572]
[1744648986930,6.14,1629.9,1629.8,7.762868]
[1744648988237,6.14,1629.9,1629.8,6.13572]
[1744648988431,6.14,1629.9,1629.8,10.13572]
[1744648989038,6.14,1629.9,1629.8,6.13572]
[1744648989233,6.14,1629.9,1629.7,6.13576]
[1744648989565,6.14,1629.9,1629.8,6.13572]
[1744648989920,6.14,1629.9,1629.8,7.362868]
[1744648990437,12.27459,1630.1,1629.8,7.362868]
[1744648990643,6.14,1630.1,1629.9,6.13533]
[1744648990945,12.27462,1630.1,1629.8,13.498368]
[1744648991157,6.14,1630.1,1629.9,6.13534]
[1744648991540,6.14,1630.1,1629.8,6.13561]
[1744648991855,6.14,1630.1,1629.9,6.13531]
[1744648992152,6.14,1630.1,1629.9,12.27032]
[1744648992355,6.14,1630.1,1630.0,6.13496]
[1744648992540,6.14,1630.2,1630.1,6.13459]
[1744648994121,6.14,1630.2,1630.0,13.05002]
[1744648994316,6.14,1630.2,1630.1,6.13459]
[1744648994551,6.14,1630.4,1630.3,6.13384]
[1744648994854,6.14,1630.4,1630.0,2.846102]
[1744648995168,12.27357,1630.4,1630.1,13.74135]
[1744648995452,12.27357,1630.4,1630.1,7.607]
[1744648995656,12.27357,1630.4,1630.0,7.607]
[1744648995657,6.13384,1630.3,1630.0,7.607]
[1744648995820,12.2735,1630.4,1630.0,14.50257]
[1744648996015,6.14,1630.4,1630.1,6.13424]
[1744648996248,18.40734,1630.4,1630.1,6.13424]
[1744648996951,6.14,1630.4,1630.1,6.13424]
[1744648997156,6.14,1630.4,1630.2,6.13405]
[1744648997451,12.27368,1630.4,1630.0,14.50259]
[1744648997621,12.27358,1630.4,1630.1,7.607]
[1744648997955,12.27364,1630.4,1630.0,13.74185]
[1744648998115,6.14,1630.4,1630.0,9.063765]
[1744648998321,6.14,1630.4,1630.2,6.1341]
[1744648998728,6.14,1630.4,1630.0,15.198595]
[1744648998923,6.14,1630.4,1630.2,6.13407]
[1744648999135,6.14,1630.4,1630.2,12.26815]
[1744648999426,6.14,1630.6,1630.4,6.13334]
[1744648999637,6.14,1630.6,1630.4,12.26667]
[1744648999839,6.14,1630.7,1630.6,6.13271]
[1744649000051,6.14,1630.7,1630.6,6.97953064]
[1744649000350,12.26112,1631.2,1630.6,0.7855]
[1744649000553,6.14,1631.2,1630.8,6.13195]
[1744649000756,6.14,1631.2,1631.0,6.91493]
[1744649000954,6.14,1631.3,1631.2,6.13045]
[1744649002052,6.14,1631.7,1631.4,6.956]
[1744649002285,6.14,1631.8,1631.7,6.12857]
[1744649002553,6.14,1631.8,1631.5,12.2585]
[1744649002852,0.4010058,1631.9,1631.7,6.95907]
[1744649003168,0.4010058,1631.9,1631.8,13.7332]
[1744649003519,6.5288358,1631.9,1631.7,0.8305]
[1744649003721,6.5288358,1631.9,1631.7,7.605]
[1744649003971,7.25902938,1631.9,1631.7,7.605]
[1744649004152,6.1282,1631.8,1631.7,7.605]
[1744649004866,12.2682,1631.8,1631.7,7.605]
[1744649005068,12.25739,1631.7,1631.3,62.30781]
[1744649005372,7.968349,1631.7,1631.3,68.43771]
[1744649005656,12.25752,1631.7,1631.3,62.3077]
[1744649005838,6.12861,1631.7,1631.3,68.43765]
[1744649006365,6.12861,1631.7,1631.3,54.7047]
[1744649006564,6.12861,1631.7,1631.4,7.603]
[1744649006868,18.39668,1631.8,1631.4,13.73251]
[1744649007069,6.12858,1631.7,1631.4,13.73251]
[1744649007273,6.14,1631.8,1631.6,6.12863]
[1744649007447,6.14,1631.8,1631.7,6.87967]
[1744649007647,0.4010058,1631.9,1631.8,6.1282]
[1744649007846,0.4010058,1631.9,1631.8,13.7312]
[1744649010948,0.4010058,1631.9,1631.8,6.1282]
[1744649011145,0.4010058,1631.9,1631.7,14.4805]
[1744649011344,0.4010058,1631.9,1631.7,16.22855]
[1744649011984,0.4010058,1631.9,1631.7,16.07532618]
[1744649012142,6.5288258,1631.9,1631.8,4.0]
[1744649012346,0.4010058,1631.9,1631.8,4.0]
[1744649012547,6.5288258,1631.9,1631.8,4.0]
[1744649012777,0.4010058,1631.9,1631.8,10.1282]
[1744649013083,0.4010058,1631.9,1631.8,6.1282]
[1744649013278,0.4010058,1631.9,1631.8,8.11396]
[1744649017072,0.4010058,1631.9,1631.8,6.1282]
[1744649018184,0.4010058,1631.9,1631.7,8.4076]
[1744649018350,0.4010058,1631.9,1631.5,13.02838]
[1744649018554,6.5290258,1631.9,1631.6,11.64228275]
[1744649018885,6.12822,1631.8,1631.6,11.581]
[1744649019273,6.12822,1631.8,1631.6,4.0]
[1744649019474,12.26822,1631.8,1631.7,7.581]
[1744649019648,12.26822,1631.8,1631.6,4.0]
[1744649019852,12.26822,1631.8,1631.7,7.581]
[1744649020484,12.26822,1631.8,1631.6,4.0]
[1744649020680,12.26822,1631.8,1631.7,4.0]
[1744649021264,6.14,1631.8,1631.7,4.0]
[1744649021467,6.14,1631.8,1631.7,6.12857]
[1744649021861,6.14,1631.8,1631.7,7.354304]
[1744649022989,0.4010058,1631.9,1631.7,7.354304]
[1744649023491,0.4010058,1631.9,1631.7,6.12854]
[1744649023666,0.4010058,1631.9,1631.8,7.58]
[1744649025285,6.1282,1631.8,1631.5,6.89918]
[1744649025476,12.25656,1631.8,1631.6,7.58]
[1744649025681,6.1282,1631.8,1631.6,7.58]
[1744649026173,6.5289358,1631.9,1631.6,13.70884]
[1744649026491,0.4010058,1631.9,1631.7,6.12853]
[1744649026680,0.4010058,1631.9,1631.8,6.1282]
[1744649027683,0.4010058,1631.9,1631.7,6.12839]
[1744649028410,0.4010058,1631.9,1631.8,4.0]
[1744649029713,0.4010058,1631.9,1631.8,15.01792651]
[1744649029865,5.8e-06,1631.9,1631.8,14.68678905]
[1744649030224,6.19,1632.4,1632.2,6.92161]
[1744649030511,0.05,1632.4,1632.1,6.12694]
[1744649030716,0.05,1632.4,1632.3,6.12632]
[1744649030857,0.05,1632.4,1632.3,8.5129381]
[1744649031509,0.05,1632.4,1632.3,12.40199274]
[1744649031717,0.05,1632.4,1632.3,12.3407381]
[1744649032027,0.05,1632.4,1632.3,19.9197381]
[1744649033326,6.14,1632.8,1632.7,6.12482]
[1744649033619,13.04584,1633.2,1632.8,6.1241]
[1744649033917,6.1237,1633.0,1632.6,6.12516]
[1744649034119,0.7827,1632.9,1632.6,12.2502]
[1744649034427,6.90677,1632.9,1632.6,6.12504]
[1744649034790,13.9136786,1633.2,1632.8,6.12429]
[1744649034791,6.12344,1633.1,1632.8,6.12429]
[1744649034993,8.5900086,1633.2,1632.8,6.12429]
[1744649035201,12.24782,1633.0,1632.6,12.25014]
[1744649035409,6.12378,1633.0,1632.6,12.25014]
[1744649035605,14.7131686,1633.2,1632.8,6.12443]
[1744649035804,6.12344,1633.1,1632.8,6.12443]
[1744649036008,14.7131686,1633.2,1632.8,6.12443]
[1744649036208,8.5900086,1633.2,1632.6,6.12518]
[1744649036483,6.12334,1633.1,1632.8,6.1243]
[1744649037046,6.14,1633.1,1632.7,0.8195]
[1744649037196,6.14,1633.1,1633.0,6.12369]
[1744649037697,6.14,1633.3,1633.1,6.12332]
[1744649038029,6.14,1633.3,1632.9,0.06123217]
[1744649038030,6.14,1633.3,1633.0,6.12362]
[1744649038179,12.26259,1633.3,1633.0,12.24712]
[1744649038383,14.186529,1633.3,1632.9,6.12406]
[1744649038602,6.12307,1633.2,1632.8,13.70244]
[1744649038997,6.12307,1633.2,1632.9,6.12406]
[1744649039543,6.14,1633.3,1633.2,6.12294]
[1744649039742,6.14,1633.3,1633.0,6.12369]
[1744649039743,6.14,1633.3,1633.1,6.12314]
[1744649039948,12.26268,1633.3,1633.0,6.12362]
[1744649040112,12.26268,1633.3,1632.9,6.12397]
[1744649040113,6.12307,1633.2,1632.9,6.12397]
[1744649040442,6.12307,1633.2,1632.9,6.12396]
[1744649040745,0.7689,1633.1,1632.8,13.7013]
[1744649041043,6.9089,1633.1,1632.9,10.12403]
[1744649041240,6.14,1633.1,1633.0,6.12369]
[1744649041536,6.14,1633.1,1632.8,15.15341]
[1744649041692,6.14,1633.1,1632.9,6.12391]
[1744649042027,6.19,1633.4,1633.2,6.12294]
[1744649042221,6.19,1633.4,1633.3,6.12257]
[1744649042416,6.19,1633.4,1633.1,6.12311]
[1744649042731,6.12307,1633.2,1632.9,13.69995]
[1744649043021,18.38705,1633.1,1632.9,11.576]
[1744649043223,6.14,1633.1,1632.9,7.576]
[1744649043423,12.26343,1633.1,1632.9,7.576]
[1744649043624,18.38705,1633.1,1632.9,7.576]
[1744649043797,6.12369,1633.0,1632.9,7.576]
[1744649043998,12.26369,1633.0,1632.9,7.576]
[1744649044194,6.12438,1632.9,1632.7,7.576]
[1744649044407,12.26396,1633.0,1632.8,4.0]
[1744649044612,12.26396,1633.0,1632.7,7.576]
[1744649044613,6.12407,1632.9,1632.7,7.576]
[1744649044999,6.14,1633.0,1632.7,13.70052]
[1744649045299,18.3878,1633.0,1632.7,13.70052]
[1744649045631,12.26388,1633.0,1632.7,13.70052]
[1744649045817,12.26388,1633.0,1632.7,19.82523]
[1744649046016,6.14,1633.0,1632.7,19.82521]
[1744649046201,6.14,1633.0,1632.8,6.12433]
[1744649046402,6.14,1633.1,1632.9,6.12386]
[1744649046602,6.14,1633.3,1632.8,0.06123458]
[1744649046813,6.19,1633.4,1633.0,6.92099]
[1744649047015,6.19,1633.4,1633.2,12.24539]
[1744649047355,6.19,1633.4,1633.3,6.12257]
[1744649047991,6.19,1633.4,1633.3,7.347085]
[1744649048417,12.31233,1633.4,1633.1,13.69921]
[1744649048646,6.19,1633.4,1633.2,6.12291]
[1744649048803,6.19,1633.4,1633.2,6.12283]
[1744649048999,6.19,1633.4,1633.2,6.12294]
[1744649049223,6.19,1633.4,1633.2,12.24578]
[1744649049427,6.19,1633.4,1633.2,12.24564]
[1744649049728,12.31231,1633.4,1633.1,13.69923]
[1744649049927,13.543541,1633.4,1633.1,13.69923]
[1744649050130,6.19,1633.4,1633.1,13.6992]
[1744649050430,6.19,1633.4,1633.2,6.12292]
[1744649050796,6.19,1633.4,1633.1,19.82241]
[1744649051128,6.19,1633.4,1633.1,13.6992]
[1744649051330,6.19,1633.4,1633.3,6.12257]
[1744649052217,6.19,1633.4,1633.0,3.7973]
[1744649052422,6.19,1633.4,1633.3,6.12257]
[1744649052738,12.31233,1633.4,1633.2,7.556]
[1744649052900,6.12304,1633.2,1632.9,6.12396]
[1744649053101,6.12304,1633.2,1632.8,13.67935]
[1744649053321,0.05,1633.4,1633.0,4.0]
[1744649053597,6.12264,1633.3,1633.0,4.0]
[1744649053798,6.12264,1633.3,1633.0,10.12368]
[1744649054015,6.12264,1633.3,1633.0,4.0]
[1744649054209,18.38612,1633.2,1633.0,4.0]
[1744649054433,19.17616,1633.2,1633.0,4.0]
[1744649054730,18.38616,1633.2,1633.0,4.0]
[1744649054936,6.14,1633.2,1633.0,4.0]
[1744649055137,6.14,1633.2,1633.0,10.12353]
[1744649055642,12.26299,1633.2,1633.0,4.0]
[1744649055930,6.14,1633.2,1633.1,6.12332]
[1744649056434,6.14,1633.2,1632.8,7.555]
[1744649056609,6.14,1633.2,1633.0,6.12351]
[1744649056809,6.14,1633.2,1632.9,6.124]
[1744649057025,6.14,1633.2,1633.0,6.12347]
[1744649057223,6.14,1633.2,1632.9,6.12396]
[1744649057419,6.14,1633.2,1632.9,12.24793]
[1744649057616,6.14,1633.2,1633.1,6.12332]
[1744649057820,6.14,1633.2,1633.0,6.12351]
[1744649058025,6.14,1633.2,1633.0,6.12359]
[1744649058207,6.14,1633.2,1632.9,6.12393]
[1744649058405,6.90697,1633.1,1632.8,13.67932]
[1744649058648,8.211667,1633.1,1632.8,13.67941]
[1744649058961,6.14,1633.2,1633.1,6.12332]
[1744649060235,6.14,1633.2,1633.0,6.92751]
[1744649060609,6.14,1633.2,1633.1,6.12332]
[1744649060803,6.14,1633.2,1633.1,10.12332]
[1744649062385,12.26294,1633.2,1633.1,4.0]
[1744649063114,6.19,1633.4,1633.2,6.12272]
[1744649063343,6.19,1633.4,1633.2,13.67772]
[1744649063642,6.19,1633.4,1633.2,19.80056]
[1744649064215,6.19,1633.4,1633.1,6.1232]
[1744649064410,6.19,1633.4,1633.3,6.12257]
[1744649065034,0.05,1633.4,1633.3,16.81000645]
[1744649065951,0.05,1633.4,1633.3,12.7832153]
[1744649066254,0.05,1633.4,1633.3,4.0]
[1744649066615,6.19,1633.4,1633.3,4.0]
[1744649066839,12.31219,1633.4,1633.3,4.0]
[1744649067346,12.31219,1633.4,1633.2,7.555]
[1744649067541,18.43459,1633.4,1633.2,7.555]
[1744649067754,12.24535,1633.3,1633.0,6.12355]
[1744649067950,6.12294,1633.2,1633.1,4.0]
[1744649068325,12.24532,1633.3,1633.1,4.0]
[1744649068673,14.3502179,1633.3,1633.1,4.0]
[1744649068872,8.2274679,1633.3,1633.1,4.0]
[1744649069041,14.3503279,1633.3,1633.1,4.0]
[1744649069241,12.26294,1633.2,1633.1,4.0]
[1744649069552,6.12369,1633.0,1632.9,7.555]
[1744649069761,6.14,1633.0,1632.9,17.67907]
[1744649069948,6.14,1633.0,1632.9,11.555]
[1744649070268,6.14,1633.0,1632.9,17.67907]
[1744649070880,12.26369,1633.0,1632.9,11.555]
[1744649071057,6.14,1633.0,1632.9,17.67907]
[1744649071259,6.14,1633.0,1632.9,20.05942]
[1744649071463,6.14,1633.0,1632.9,17.67907]
[1744649072777,6.14,1633.2,1632.9,17.67907]
[1744649072973,6.14,1633.2,1632.9,23.80302]
[1744649073179,6.14,1633.2,1633.0,6.12357]
[1744649073358,6.14,1633.2,1632.9,17.679]
[1744649073547,6.14,1633.2,1632.9,17.67894]
[1744649073878,12.26319,1633.2,1632.9,23.8029]
[1744649074045,6.14,1633.2,1633.0,6.12368]
[1744649074246,6.14,1633.2,1633.0,12.24725]
[1744649074447,6.14,1633.2,1633.0,6.12357]
[1744649074677,6.14,1633.2,1633.0,12.24713]
[1744649074907,6.14,1633.2,1632.9,17.67896]
[1744649075050,6.14,1633.2,1632.9,23.80293]
[1744649075249,6.14,1633.2,1632.9,20.059253]
[1744649075450,6.14,1633.2,1633.0,4.0]
[1744649075652,12.26299,1633.2,1633.0,4.0]
[1744649075849,6.9899,1633.4,1633.1,6.12303]
[1744649076048,6.9899,1633.4,1633.0,4.7685]
[1744649076049,6.19,1633.4,1633.2,6.12276]
[1744649076376,6.19,1633.4,1633.3,7.555]
[1744649077282,0.05,1633.4,1633.3,13.67757]
[1744649077990,0.05,1633.4,1633.3,17.67757]
[1744649080075,0.05,1633.4,1633.3,11.555]
[1744649081392,0.05,1633.4,1633.3,17.67757]
[1744649082085,0.05,1633.4,1633.3,11.555]
[1744649082289,7.59299,1633.4,1633.3,4.0]
[1744649084372,6.12282,1633.3,1633.1,7.537]
[1744649084981,7.5931,1633.4,1633.1,13.66016]
[1744649085178,6.12294,1633.2,1633.1,7.537]
[1744649085360,6.12294,1633.2,1633.1,11.537]
[1744649085994,6.12294,1633.2,1632.9,13.66097]
[1744649086295,6.12294,1633.2,1633.0,4.0]
[1744649086674,12.2461,1633.2,1633.0,4.0]
[1744649086868,6.12332,1633.1,1633.0,4.0]
[1744649087285,7.96155,1633.2,1633.0,4.0]
[1744649087500,6.12294,1633.2,1632.9,13.66106]
[1744649087708,6.12294,1633.2,1632.9,13.66096]
[1744649088417,12.24605,1633.2,1632.9,13.66096]
[1744649088615,6.12312,1633.2,1632.9,13.66105]
[1744649089208,12.24625,1633.2,1632.9,13.66105]
[1744649089917,6.12312,1633.2,1632.9,13.66095]
[1744649090104,12.24619,1633.2,1632.9,13.66095]
[1744649090309,6.14,1633.1,1632.9,13.66095]
[1744649090902,6.14,1633.1,1633.0,6.12369]
[1744649091092,6.14,1633.1,1633.0,10.21171401]
[1744649091418,6.14,1633.1,1633.0,6.89379]
[1744649092707,6.14,1633.1,1633.0,10.89379]
[1744649092905,6.14,1633.1,1633.0,11.537]
[1744649093107,6.14,1633.1,1633.0,17.66069]
[1744649093420,6.12332,1633.1,1633.0,4.0]
[1744649093747,14.179122,1633.1,1633.0,4.0]
[1744649093918,6.12371,1633.0,1632.8,7.537]
[1744649094230,6.14,1633.0,1632.8,13.66144]
[1744649094589,6.14,1633.0,1632.8,13.66133]
[1744649094790,6.14,1633.0,1632.8,19.78566]
[1744649095063,6.14,1633.0,1632.8,13.66133]
[1744649095342,6.14,1633.0,1632.8,15.639936]
[1744649095506,6.14,1633.0,1632.9,6.12407]
[1744649096924,6.14,1633.0,1632.9,10.12407]
[1744649098107,6.14,1633.0,1632.9,10.90497]
[1744649099030,0.05,1633.4,1632.9,17.93176115]
[1744649099203,0.05,1633.4,1633.3,6.12257]
[1744649099546,0.05,1633.4,1633.3,13.65957]
[1744649100091,0.05,1633.4,1633.3,16.65957]
[1744649101433,0.05,1633.4,1633.3,13.65957]
[1744649102241,0.05,1633.4,1633.1,6.12329]
[1744649102440,0.667193,1633.4,1633.2,13.6597]
[1744649102608,0.05,1633.4,1633.3,6.12257]
[1744649102814,0.05,1633.4,1633.2,23.78249]
[1744649103011,6.17242,1633.4,1633.2,11.537]
[1744649103343,6.12257,1633.3,1633.2,11.537]
[1744649103498,7.966062,1633.3,1633.2,11.537]
[1744649103699,8.724462,1633.3,1633.2,11.537]
[1744649104031,6.1237,1633.0,1632.7,19.78542]
[1744649104233,6.1237,1633.0,1632.8,4.0]
[1744649104417,6.1237,1633.0,1632.7,7.536]
[1744649104601,6.12419,1632.9,1632.7,7.536]
[1744649105200,6.12444,1632.8,1632.7,7.536]
[1744649105395,6.12419,1632.9,1632.7,7.536]
[1744649105396,12.2485,1632.9,1632.7,7.536]
[1744649105602,6.12444,1632.8,1632.7,7.536]
[1744649106025,12.24849,1632.9,1632.7,7.536]
[1744649106227,6.12444,1632.8,1632.7,7.536]
[1744649107225,6.12444,1632.8,1632.4,13.0454]
[1744649107401,12.24908,1632.8,1632.4,13.0454]
[1744649107632,6.12501,1632.7,1632.5,4.0]
[1744649107804,12.25012,1632.7,1632.5,4.0]
[1744649108136,6.88509,1632.6,1632.5,4.0]
[1744649108448,13.02509,1632.6,1632.5,4.0]
[1744649109508,19.15066,1632.6,1632.3,7.537]
[1744649109707,6.12566,1632.5,1632.3,7.537]
[1744649110003,19.15044,1632.6,1632.3,7.537]
[1744649110204,6.12561,1632.5,1632.3,7.537]
[1744649110551,6.12668,1632.3,1631.9,53.85971]
[1744649110762,6.12764,1632.0,1631.8,7.519]
[1744649110901,6.14,1632.2,1631.8,7.519]
[1744649111251,6.14,1632.2,1631.8,8.2709]
[1744649111456,6.14,1632.2,1631.8,7.519]
[1744649111654,12.26686,1632.2,1631.8,7.519]
[1744649111950,6.12709,1632.1,1631.8,13.64707]
[1744649112355,6.9046,1632.3,1632.1,6.12704]
[1744649112683,6.14,1632.5,1632.3,6.12616]
[1744649112803,6.9632,1632.7,1632.1,6.1268]
[1744649113007,6.12568,1632.5,1632.2,6.12669]
[1744649113209,12.94699,1632.6,1632.2,6.12652]
[1744649113453,6.12563,1632.5,1632.2,6.12652]
[1744649113973,6.12563,1632.5,1632.1,6.12694]
[1744649114252,6.91768,1632.4,1632.2,4.0]
[1744649114550,6.12632,1632.3,1632.2,4.0]
[1744649115115,12.25296,1632.3,1632.0,4.0]
[1744649115444,12.25293,1632.3,1632.0,4.0]
[1744649115814,6.12632,1632.3,1632.0,10.12741]
[1744649116129,0.7916,1632.4,1632.0,5.095971]
[1744649116310,0.7916,1632.4,1632.3,6.12632]
[1744649116511,0.7916,1632.4,1632.2,6.12653]
[1744649116729,6.14,1632.5,1632.1,6.12699]
[1744649116928,6.9218,1632.6,1632.4,6.12594]
[1744649117110,8.226489,1632.6,1632.4,6.12594]
[1744649117311,6.9218,1632.6,1632.4,6.12594]
[1744649117556,6.14,1632.6,1632.5,6.12557]
[1744649118137,6.14,1632.6,1632.4,6.12577]
[1744649118359,6.14,1632.6,1632.5,6.12557]
[1744649118512,12.26523,1632.6,1632.3,12.25235]
[1744649118717,6.14,1632.6,1632.3,12.25235]
[1744649118938,6.14,1632.6,1632.3,15.11169412]
[1744649119174,6.14,1632.6,1632.4,4.0]
[1744649119175,18.39068,1632.6,1632.4,4.0]
[1744649119370,12.26524,1632.6,1632.4,4.0]
[1744649119677,12.26524,1632.6,1632.3,6.12624]
[1744649119831,18.39065,1632.6,1632.2,20.56753]
[1744649120034,19.14285,1632.6,1632.2,20.56753]
[1744649120336,6.8922,1632.6,1632.4,6.12589]
[1744649121170,13.01741,1632.6,1632.2,20.56747]
[1744649121483,19.14292,1632.6,1632.2,20.56747]
[1744649121802,6.8922,1632.6,1632.3,6.12615]
[1744649122149,6.14,1632.6,1632.5,6.12557]
[1744649122352,6.14,1632.6,1632.4,6.12582]
[1744649122565,12.26483,1632.7,1632.4,12.25162]
[1744649123590,6.1255,1632.6,1632.2,14.44081]
[1744649123796,12.25106,1632.6,1632.2,20.56738]
[1744649124151,0.7645,1632.6,1632.3,4.0]
[1744649124346,11.21442307,1632.9,1632.3,4.0]
[1744649124347,6.93904,1632.4,1632.3,4.0]
[1744649124550,12.94126872,1632.4,1632.3,4.0]
[1744649125100,6.93904,1632.4,1632.1,6.12686]
[1744649125259,6.14,1632.5,1632.2,6.12644]
[1744649125588,12.26568,1632.5,1632.2,6.12644]
[1744649125944,12.26568,1632.5,1632.2,12.253]
[1744649126148,12.26568,1632.5,1632.2,6.12644]
[1744649126351,6.12604,1632.4,1632.1,0.8003]
[1744649126582,6.12604,1632.4,1632.1,6.9273]
[1744649126946,6.12643,1632.3,1632.0,12.25467]
[1744649127143,12.25235,1632.4,1632.0,12.25464]
[1744649127406,7.446748,1632.5,1631.9,0.8104]
[1744649127613,12.26578,1632.5,1632.1,6.1268]
[1744649127790,12.26578,1632.5,1632.2,6.12668]
[1744649127961,6.12607,1632.4,1632.1,6.12686]
[1744649128301,18.3917,1632.5,1632.2,6.12662]
[1744649128597,6.12609,1632.4,1632.1,12.866476]
[1744649128894,0.8018,1632.6,1632.5,6.12557]
[1744649128895,6.14,1632.6,1632.5,6.12557]
[1744649129111,6.14,1632.9,1632.8,6.12444]
[1744649129311,12.26418,1632.9,1632.7,0.8258]
[1744649129461,6.12482,1632.7,1632.6,7.522]
[1744649129774,0.7677,1632.8,1632.6,7.522]
[1744649130115,6.12482,1632.7,1632.4,6.94577]
[1744649130257,6.8922,1632.8,1632.4,6.94565]
[1744649130457,6.14,1632.7,1632.2,18.40863]
[1744649130658,6.91379,1632.4,1632.2,7.522]
[1744649130873,0.7878,1632.4,1632.2,7.522]
[1744649131076,6.91381,1632.4,1632.2,7.522]
[1744649131360,0.7878,1632.4,1632.2,7.522]
[1744649131792,0.7878,1632.4,1632.2,13.64859]
[1744649132003,13.63498,1632.6,1632.2,19.77518]
[1744649132176,0.7702,1632.6,1632.4,6.12591]
[1744649132877,0.7702,1632.6,1632.3,6.1262]
[1744649133079,6.12558,1632.5,1632.2,13.64864]
[1744649133464,0.7702,1632.6,1632.2,7.522]
[1744649133790,6.12557,1632.5,1632.2,7.522]
[1744649134113,6.815147,1632.5,1632.2,7.522]
[1744649134263,19.081087,1632.5,1632.2,7.522]
[1744649134703,6.12596,1632.4,1632.2,7.522]
[1744649135006,6.12632,1632.3,1632.2,7.522]
[1744649135163,6.90182,1632.3,1632.2,7.522]
[1744649136291,0.7755,1632.3,1632.2,7.522]
[1744649136497,6.14,1632.4,1632.3,6.12632]
[1744649136795,6.9155,1632.6,1632.4,6.12587]
[1744649136989,13.0408,1632.6,1632.3,6.12617]
[1744649137183,19.16617,1632.6,1632.3,6.12617]
[1744649137383,6.9155,1632.6,1632.4,6.1259]
[1744649137681,6.9155,1632.6,1632.5,6.12557]
[1744649137884,6.9146,1632.9,1632.4,2.010507]
[1744649138196,6.1249,1632.7,1632.3,6.12625]
[1744649138400,6.12579,1632.5,1632.2,7.522]
[1744649138559,19.21193,1632.6,1632.2,13.64837]
[1744649138764,6.12565,1632.5,1632.2,13.64837]
[1744649138958,7.434465,1632.5,1632.2,7.522]
[1744649139215,1.308695,1632.5,1632.3,6.12632]
[1744649139508,1.308695,1632.5,1632.2,13.64858]
[1744649139695,7.434405,1632.5,1632.2,13.64858]
[1744649140013,6.12632,1632.3,1632.2,7.522]
[1744649140307,13.08812,1632.3,1632.2,7.522]
[1744649140495,19.21478,1632.3,1631.9,6.12779]
[1744649140666,6.12676,1632.2,1631.9,6.12779]
[1744649141269,13.08812,1632.3,1632.0,6.12744]
[1744649141597,8.95755805,1632.3,1632.0,6.1273]
[1744649141777,15.08403805,1632.3,1632.0,6.1273]
[1744649142304,6.12676,1632.2,1631.9,12.25539]
[1744649142463,15.08403805,1632.3,1632.0,6.12727]
[1744649143070,6.14,1632.3,1632.1,6.1267]
[1744649143291,6.14,1632.3,1632.2,6.1267]
[1744649145484,6.14,1632.6,1632.4,6.12571]
[1744649145686,6.14,1632.7,1632.5,6.12557]
[1744649145903,6.14,1632.7,1632.5,6.12547]
[1744649146219,6.1253,1632.6,1632.3,6.1262]
[1744649146527,6.1253,1632.6,1632.2,7.503]
[1744649146528,6.14,1632.7,1632.2,7.503]